Cogmind - Beta 13 @@@ ROGUE MODE // 2024.04.08 @ 16:30:46 Player: Dogenati Result: Destroyed by S-10 Pest with Light Assault Rifle Performance ------------- Evolutions (0) 0 Regions Visited (1) 200 Robots Destroyed (7) 35 Value Destroyed (209) 209 Prototype IDs (0) 0 Alien Tech Used (0) 0 Bonus (0) 0 TOTAL SCORE: 444 Bonus ------- None Cogmind --------- Core Integrity 0/250 Matter 197/300 Energy 500/500 System Corruption 0% Temperature Cool (0) Movement Walking (190) Ox1 Location -10/Materials Parts ------- > --- POWER (1) -------- Ion Engine > --- PROPULSION (2) --- Improved Aluminum Leg Improved Aluminum Leg > --- UTILITY (2) ------ Large Storage Unit High-capacity Battery > --- WEAPON (2) ------- (None) > --- INVENTORY (15) --- Core Shielding Peak State ------------ > --- POWER ------------ Ion Engine > --- PROPULSION ------- Improved Aluminum Leg Improved Aluminum Leg > --- UTILITY ---------- Large Storage Unit High-capacity Battery > --- WEAPON ----------- EM Shotgun Plasma Cutter > --- INVENTORY -------- Core Shielding [Rating: 11] Favorites ----------- Power Ion Engine Engine Ion Engine Propulsion Aluminum Leg Leg Aluminum Leg Wheel Wheel Utility Large Storage Unit Device Heat Sink Storage Large Storage Unit Protection Light Armor Plating Weapon EM Pulse Gun Energy Gun EM Pulse Gun Launcher Grenade Launcher Special Weapon Plasma Cutter Build | -11 -10 ------- Run | Yrd Mat Slots Evolved . | . . Power . | . . Propulsion . | . . Utility . | . . Weapon . | . . Parts Attached 21 | 11 10 Power 3 | 2 1 Engine 3 | 2 1 Core . | . . Reactor . | . . Propulsion 8 | 6 2 Treads . | . . Leg 6 | 4 2 Wheel 2 | 2 . Hover . | . . Flight . | . . Utility 4 | 1 3 Device 1 | 1 . Storage 2 | . 2 Processor . | . . Hackware . | . . Protection 1 | . 1 Artifact . | . . Weapon 6 | 2 4 Energy Gun 3 | 2 1 Energy Cannon . | . . Ballistic Gun . | . . Ballistic Cannon . | . . Launcher 1 | . 1 Special Weapon 2 | . 2 Impact Weapon . | . . Slashing Weapon . | . . Piercing Weapon . | . . Special Melee Weapon . | . . Unidentified Prototypes . | . . Parts Lost 9 | . 9 Power 1 | . 1 Propulsion 2 | . 2 Utility 1 | . 1 Weapon 5 | . 5 Highest Loss Streak 7 | . 7 To Critical Strikes . | . . Average Slot Usage (%) 74 | . 74 Engine 11 | . 11 Leg 21 | . 21 Device 4 | . 4 Storage 15 | . 15 Protection 4 | . 4 Energy Gun 8 | . 8 Special Weapon 7 | . 7 Naked Turns . | . . Heaviest Build 33 | 9 33 Greatest Support 26 | 20 26 Greatest Overweight (x) 9 | . 9 Average Overweight (x) . | . 1 Largest Inventory Capacity 15 | 5 15 Average Capacity 9 | 5 11 Most Carried 5 | 5 5 Average Carried 2 | 2 2 Final Capacity 15 | 5 15 Final Carried 5 | 5 1 Class Distribution -------------------- 100% | Mutant Dominant Class ---------------- Mutant | -10/Materials Resources | -11 -10 ----------- Run | Yrd Mat Matter Collected 302 | 265 37 Remotely . | . . Salvage Created 210 | 34 176 Parts 16 | 3 13 Haulers Intercepted . | . . Recyclers Shooed 3 | . 3 Parts Field Recycled . | . . Retrieved Matter . | . . Parts Self-Destructed . | . . Prevented . | . . Kills | -11 -10 ------- Run | Yrd Mat Combat Hostiles Destroyed 6 | 1 5 Guns 4 | 1 3 AOE 2 | . 2 Classes Destroyed 3 | 1 2 Watcher 1 | . 1 Swarmer 1 | . 1 Grunt 5 | 1 4 Best Kill Streak 2 | 1 2 Combat Bots Only 2 | 1 2 Max Kills in Single Turn 1 | 1 1 Gunslinging . | . . Exploded 1 | . 1 Melee . | . . Uniques/NPCs Destroyed . | . . Combat | -11 -10 -------- Run | Yrd Mat Hostile Shots Fired 124 | 7 117 Missed 29 | 1 28 Damage Taken 1012 | 65 947 Core 253 | 21 232 Absorbed by Shields . | . . Core Remaining (%) 91 | 91 . Volleys Fired 36 | 7 29 Largest 1 | 1 1 Hottest 45 | 40 45 Shots Fired 36 | 7 29 Gun 30 | 7 23 Cannon . | . . Launcher 6 | . 6 Special . | . . Kinetic . | . . Thermal 7 | 7 . Explosive 6 | . 6 Electromagnetic 23 | . 23 Robot Hit Streak 5 | 5 3 Robot Miss Streak 4 | 1 4 Penetration Max . | . . Secondary Targets . | . . Shots Hit Robots 20 | 6 14 Core Hits 13 | 2 11 Critical Kills . | . . Critical Parts Destroyed . | . . Critical Strikes 1 | . 1 Corrupt 1 | . 1 Melee Attacks . | . . Impact . | . . Slashing . | . . Piercing . | . . Sneak Attacks . | . . Combat Hostiles . | . . Follow-up Attacks . | . . Damage Inflicted 508 | 66 442 Guns 210 | 66 144 Cannons . | . . Explosions 294 | . 294 Melee . | . . Ramming 4 | . 4 Kinetic . | . . Thermal 66 | 66 . Explosive 294 | . 294 Electromagnetic 144 | . 144 Impact . | . . Slashing . | . . Piercing . | . . Highest Corruption . | . . Average Corruption . | . . Corruption Purged . | . . Corruption Blocked . | . . Overload Shots . | . . Overflow Damage 17 | . 17 Projectiles . | . . Explosions 17 | . 17 Melee . | . . Knockbacks . | . . Impact . | . . Kinetic . | . . Secondary . | . . Self-Inflicted Damage 57 | . 57 Shots 4 | . 4 Rammed . | . . Targets Rammed 5 | . 5 Kicked 5 | . 5 Crushed . | . . Highest Temperature 90 | 36 90 Average Temperature 24 | 21 24 Received Heat Transfer 381 | 36 345 Siege Activations . | . . Robots Corrupted . | . . Combat Hostiles . | . . Parts Fried . | . . Impact Corruptions . | . . Robots Melted . | . . Combat Hostiles . | . . Parts Melted . | . . Heat Transferred 150 | 150 . Parts Sabotaged . | . . Parts Stolen . | . . Parts Stripped . | . . Power Chain Reactions . | . . Alert | -11 -10 ------- Run | Yrd Mat Peak Influence 93 | 20 93 Initial 13 | . 13 Average 37 | 7 56 Maximum Alert Level . | . . Low Security (%) 100 | 100 100 Level 1 . | . . Level 2 . | . . Level 3 . | . . Level 4 . | . . Level 5 . | . . High Security . | . . Max Security . | . . Squads Dispatched 1 | . 1 Investigation . | . . Extermination . | . . Reinforcement 1 | . 1 Assault . | . . Garrison . | . . Intercept . | . . Searches Triggered . | . . Construction Impeded . | . . Haulers Reinforced . | . . Active Scanning Responses . | . . Cargo Convoy Interrupts . | . . Stealth | -11 -10 --------- Run | Yrd Mat Distress Signals 1 | . 1 Communications Jammed . | . . Distress Signals . | . . Times Spotted 13 | 1 12 Peak Tracking Total 4 | 1 4 Tactical Retreats . | . . Traps | -11 -10 ------- Run | Yrd Mat Traps Triggered . | . . Indirectly . | . . Trap Hack Attempts . | . . Triggered . | . . Disarmed . | . . Reprogrammed . | . . Reused . | . . Traps Extracted . | . . Installed . | . . Triggered . | . . Machines | -11 -10 ---------- Run | Yrd Mat Machines Disabled . | . . Max in Single Turn . | . . Machines Repaired . | . . Machines Dismantled . | . . Machines Sabotaged . | . . Overloaded Fab Kills . | . . Hacking | -11 -10 --------- Run | Yrd Mat Machines Accessed . | . . Terminals . | . . Fabricators . | . . Repair Stations . | . . Recycling Units . | . . Scanalyzers . | . . Garrison Access . | . . Total Hacks . | . . Successful . | . . Failed . | . . Catastrophic . | . . Database Lockouts . | . . Manual . | . . Terminals . | . . Fabricators . | . . Repair Stations . | . . Recycling Units . | . . Scanalyzers . | . . Garrison Access . | . . Terminal Hacks . | . . Fabricator Hacks . | . . Repair Station Hacks . | . . Recycling Unit Hacks . | . . Scanalyzer . | . . Garrison Access Hacks . | . . Unauthorized Hacks . | . . Terminals . | . . Fabricators . | . . Repair Stations . | . . Recycling Units . | . . Scanalyzers . | . . Garrison Access . | . . Data Cores Recovered . | . . Used . | . . Hacking Detections . | . . Full Trace Events . | . . Feedback Events . | . . Feedback Blocked . | . . Robot Schematics Acquired . | . . Robots Built . | . . Authchips . | . . Time . | . . Total Robot Build Rating . | . . Part Schematics Acquired . | . . Parts Built . | . . Authchips . | . . Time . | . . Total Part Build Rating . | . . Parts Repaired . | . . Time . | . . Parts Recycled . | . . Recycled Matter . | . . Retrieved Matter . | . . Retrieved Components . | . . Parts Scanalyzed . | . . Part Schematics Acquired . | . . Parts Damaged . | . . Bothacking | -11 -10 ------------ Run | Yrd Mat Used RIF Installer . | . . Robots Hacked . | . . Non-combat . | . . Combat . | . . Robot Hacks Applied . | . . Relay Couplers Released . | . . Fabnet Peak Effective % . | . . Robots Rewired . | . . Allies Hacked . | . . Hacks Repelled . | . . Allies | -11 -10 -------- Run | Yrd Mat Total Allies . | . . Largest Group . | . . Highest-Rated Group . | . . Highest-Rated Ally . | . . Total Orders . | . . Ally Attacks . | . . Total Damage . | . . Kills . | . . Allies Corrupted . | . . Allies Melted . | . . Intel | -11 -10 ------- Run | Yrd Mat Robot Analysis Total . | . . Derelict Logs Recovered . | . . Drone Launches . | . . Drone Recoveries . | . . Exploration | -11 -10 ------------- Run | Yrd Mat Turns Passed 772 | 305 467 Spaces Moved 419 | 218 201 Core 88 | 70 18 Treads . | . . Legs 331 | 148 183 Wheels . | . . Hover . | . . Flight . | . . Fastest Speed 50 | 50 120 Average Speed 137 | 97 181 Slowest Speed 500 | 120 500 Overloaded Moves . | . . Propulsion Burnouts . | . . Robots Hopped . | . . Cave-ins Triggered . | . . Exploration Rate (%) 13 | 8 18 Regions Visited 1 Branch Regions . Pre-discovered Areas . | . . Known Exits Taken . | . . Unknown Exits Taken 1 | 1 . Scrap Searched . | . . Spaces Dug . | . . Terrain Destroyed 21 | . 21 Melee . | . . Projectile . | . . AOE 21 | . 21 Terrain Rammed . | . . Walls Destroyed . | . . Machines Disabled . | . . Actions | -11 -10 --------- Run | Yrd Mat Total 576 | 305 271 Wait 65 | 56 9 Move 418 | 217 201 Hop . | . . Pick Up 21 | 10 11 Fast Attach . | . . Attach 18 | 9 9 Detach 3 | 3 . Swap 3 | 2 1 Drop 7 | 1 6 Fire 36 | 7 29 Melee . | . . Ram . | . . Kick 5 | . 5 Crush . | . . Escape Stasis . | . . Rewire . | . . Trap . | . . Miscellaneous . | . . Route ------- -11/Scrapyard -10/Materials History --------- Turn | Location | Event 2 | -11/Scrapyard | Met Revision 17 167 | -11/Scrapyard | Discovered new exit (range 8) 306 | -11/Scrapyard | Entered Materials 307 | -10/Materials | Build established: Mutant 551 | -10/Materials | Core integrity fell below 50% 597 | -10/Materials | Lost 7 parts (1p2n1u3w) 758 | -10/Materials | Core integrity fell below 20% 773 | -10/Materials | Destroyed by S-10 Pest with Light Assault Rifle Last Messages --------------- U-05 Engineer lays Concrete. The unstable cave ceiling collapses. U-05 Engineer lays Concrete. Acquired Imp. Aluminum Leg. U-05 Engineer lays Concrete. Acquired Plasma Cutter. Acquired EM Shotgun. U-05 Engineer builds a Wall. K-01 Serf collects debris. Acquired 11 matter. Acquired 7 matter. Plasma Cutter destroyed. K-01 Serf collects debris. S-10 Pest destroyed. EM Shotgun destroyed. K-01 Serf collects debris. Acquired 19 matter. K-01 Serf collects debris. R-06 Scavenger collects Flight Unit. [Achievement: First Step to Greatness] Map ----- +----------------------------------------------------+ | | | | | | | | | | | ?????????????????????????????????????????????????? | | ?????????????????????????????????????????????????? | | ?????????????????????????????????????????????????? | | ?????????????????????????????????????????????????? | | ???#########?????????????????????????????????????? | | ???#== #?????????????????????????????????????? | | ???# ##########????????????????????????????? | | ???# [ # #????????????????????????????? | | ???#[[ # """ #????????????????????????????? | | ???# # """ #????????????????????????????? | | ???#|| # """ #????????????????????????????? | | ######## # #????????????????????????????? | | # # ##??######???????????????????? | | # # ##?##! !!##??????????????????? | | # # == ##?#! !#??????????????????? | | + + ##?# #??????????????????? | | # ############# ##### #??????????? | | "" """ # + ?????????? | | "" """ # #??????????? | | "" """ # w !!s """ //! #??????????? | | ######## ######### !!!@ r""" /!! #??????????? | | ???????# # * !# ! k """ /!! #??????????? | | ???????# + # s ??????????? | | ?????? # # ??????????? | | ????? #? ! #= ??????????? | | ???? #?####### % ???????????? | | ?? ########???????###u############ ???????????? | | ?? ??????????????????#t#???????????? ??????????? | | ?????????????????????# #?????????????????????????? | | ?????????????????????# #?????????????????????????? | | ?????????????????????# #?????????????????????????? | | ?????????????????????# #?????????????????????????? | | ?????????????????????# #?????????????????????????? | | ?????????????????????# ??????????????????????????? | | ?????????????????????? ??????????????????????????? | | ?????????????????????? ??????????????????????????? | | ?????????????????????????????????????????????????? | | ?????????????????????????????????????????????????? | | ?????????????????????????????????????????????????? | | ?????????????????????????????????????????????????? | | ?????????????????????????????????????????????????? | | ?????????????????????????????????????????????????? | | ?????????????????????????????????????????????????? | | ?????????????????????????????????????????????????? | | ?????????????????????????????????????????????????? | +----------------------------------------------------+ Best States ------------- Heat Dissipation 35 Energy Generation 10 Energy Capacity 500 Matter Stores 255 Matter Capacity 300 Sight Range 16 Terrain Scan Density 10 Armor Coverage 150 Evasion (%) 55 Item Schematics ----------------- None Robot Schematics ------------------ None Fabricated ------------ Nothing Alien Tech Used ----------------- None Achievements -------------- First Step to Greatness Uninvited Guest Challenges ------------ None Game ------ Seed HelicalStructuralBank Manual? 0 Play Time 00:35:22 Cumulative 0.5 hours Start 2024.04.07 @ 00:03:00 End 2024.04.08 @ 16:30:46 Sessions 2 Manual Loads 0 Difficulty Rogue Special Mode None Game No. 1 Rogue 1 Adventurer 0 Explorer 0 Win Type - Total 0 Types 0/0/0/0/0/0/0/0/0 Lore% 0 Gallery% 1 Achievement% 0 Wizard Run 0 Options --------- Layout 1 ASCII 0 Keyboard 0 Movement Numpad Keybinds 0 Fullscreen 2 Font 24/Smallcaps Map View 50x35 Zoom Use 2% Tactical HUD 0 Map Filters NONE Filters NONE Steam 1 RUN: da8545f7-cc19-46b1-8886-711ab6defc12